bitfinex/quotes_BTCUSD_20250723
["timestamp","ask_amount","ask_price","bid_price","bid_amount"]
[1753291031426,0.69310864,117690.0,117680.0,0.005]
[1753291031633,0.17845003,117680.0,117670.0,0.00864654]
[1753291031855,0.35528003,117680.0,117670.0,0.17861339]
[1753291032073,0.36680743,117680.0,117670.0,0.18711144]
[1753291032541,0.20535169,117680.0,117670.0,0.19560927]
[1753291032977,0.20535169,117680.0,117670.0,0.17861339]
[1753291032978,0.37530453,117680.0,117670.0,0.17861339]
[1753291033191,0.36780728,117680.0,117670.0,0.17411512]
[1753291033403,0.35930988,117680.0,117670.0,0.18261346]
[1753291033617,0.37630475,117680.0,117670.0,0.20810776]
[1753291034043,0.19785422,117680.0,117670.0,0.21660559]
[1753291034264,0.19025155,117680.0,117670.0,0.21660559]
[1753291034483,0.1446,117680.0,117670.0,0.66303881]
[1753291034698,0.14452,117680.0,117670.0,0.69726881]
[1753291035165,0.001,117680.0,117670.0,0.6218263]
[1753291035386,0.4955,117680.0,117670.0,0.6218263]
[1753291035605,0.49465024,117680.0,117670.0,0.6218263]
[1753291035810,0.00015024,117680.0,117670.0,1.0463036]
[1753291036026,0.00015024,117680.0,117670.0,1.1307809]
[1753291036321,0.00015024,117680.0,117670.0,0.76293019]
[1753291036528,0.00015024,117680.0,117670.0,1.1307809]
[1753291037769,0.1805731,117700.0,117690.0,0.00849639]
[1753291037770,0.1956731,117700.0,117690.0,0.19542778]
[1753291038059,0.6061392,117700.0,117690.0,0.19542778]
[1753291038244,0.58914714,117700.0,117690.0,0.19542778]
[1753291038439,0.60659616,117700.0,117690.0,0.19542778]
[1753291038650,0.61509219,117700.0,117690.0,0.19542778]
[1753291039067,0.59810028,117700.0,117690.0,0.19742778]
[1753291039368,0.78501579,117700.0,117690.0,0.18893139]
[1753291039587,0.7928202,117700.0,117690.0,0.18893154]
[1753291039802,0.78432453,117700.0,117690.0,0.18893154]
[1753291040039,0.78432453,117700.0,117690.0,0.002]
[1753291040222,1.14367936,117700.0,117690.0,0.002]
[1753291040465,0.74367936,117700.0,117690.0,0.002]
[1753291041140,0.82815666,117700.0,117690.0,0.002]
[1753291041391,0.46030595,117700.0,117690.0,0.002]
[1753291044312,0.13832632,117700.0,117690.0,0.19742778]
[1753291044525,0.30149307,117700.0,117690.0,0.19742778]
[1753291044730,0.29883802,117700.0,117690.0,0.19742778]
[1753291045158,0.31582972,117700.0,117690.0,0.19742778]
[1753291045790,0.49424942,117700.0,117690.0,0.19742778]
[1753291046222,0.31582972,117700.0,117690.0,0.19742778]
[1753291046872,0.02244902,117700.0,117690.0,0.23800512]
[1753291047093,0.16092902,117700.0,117690.0,0.23800512]
[1753291047307,0.16942461,117700.0,117690.0,0.23800512]
[1753291047520,0.16092902,117700.0,117690.0,0.23800512]
[1753291047736,0.16092902,117700.0,117690.0,0.19956778]
[1753291048205,0.56092902,117700.0,117690.0,0.19956778]
[1753291048431,0.56942461,117700.0,117690.0,0.19956778]
[1753291048635,0.56092902,117700.0,117690.0,0.19956778]
[1753291049047,0.41744902,117700.0,117690.0,0.23361778]
[1753291049264,0.54348,117700.0,117690.0,0.23361778]
[1753291049709,0.54348,117700.0,117690.0,0.25349118]
[1753291050308,0.54348,117700.0,117690.0,0.23361778]
[1753291050717,0.55197559,117700.0,117690.0,0.19956778]
[1753291050917,0.4021,117700.0,117690.0,0.19956778]
[1753291051122,0.4,117700.0,117690.0,0.19956778]
[1753291051592,0.4,117700.0,117690.0,0.37799778]
[1753291051801,0.4,117700.0,117690.0,0.38935802]
[1753291055437,0.4,117700.0,117690.0,0.74865922]
[1753291055648,0.4,117700.0,117690.0,0.38935802]
[1753291057940,0.4,117700.0,117690.0,0.37470778]
[1753291058148,0.4,117700.0,117690.0,0.35950778]
[1753291058714,0.40849559,117700.0,117690.0,0.35950778]
[1753291058935,0.4,117700.0,117690.0,0.35950778]
[1753291059171,0.41699126,117700.0,117690.0,0.34300778]
[1753291059493,0.40849552,117700.0,117690.0,0.34300778]
[1753291060330,0.4,117700.0,117690.0,0.34300778]
[1753291060672,0.41699126,117700.0,117690.0,0.19956778]
[1753291060906,0.41699126,117700.0,117690.0,0.34300778]
[1753291060907,0.40507,117700.0,117690.0,0.34300778]
[1753291061105,0.41356552,117700.0,117690.0,0.34300778]
[1753291061507,0.41356552,117700.0,117690.0,0.19956778]
[1753291061740,0.42206111,117700.0,117690.0,0.34300778]
[1753291061889,0.41356552,117700.0,117690.0,0.34300778]
[1753291062472,0.42206119,117700.0,117690.0,0.34300778]
[1753291062677,0.43055693,117700.0,117690.0,0.18893139]
[1753291062877,0.45475274,117700.0,117690.0,0.19742778]
[1753291063068,0.4782487,117700.0,117690.0,0.19742778]
[1753291063276,0.47824921,117700.0,117690.0,0.19742778]
[1753291063546,0.45276141,117700.0,117690.0,0.19742778]
[1753291063753,0.42926567,117700.0,117690.0,0.19742778]
[1753291063874,0.43776155,117700.0,117690.0,0.19742778]
[1753291064475,0.42926552,117700.0,117690.0,0.19742778]
[1753291064681,0.44625692,117700.0,117690.0,0.19742778]
[1753291064889,0.44625692,117700.0,117690.0,0.23479014]
[1753291065106,0.43776111,117700.0,117690.0,0.23479014]
[1753291065305,0.02017,117700.0,117690.0,0.23479014]
[1753291065656,0.03055758,117700.0,117690.0,0.23479014]
[1753291065837,0.2338728,117700.0,117690.0,0.24328674]
[1753291066036,0.24177728,117700.0,117690.0,0.22629375]
[1753291066315,0.24223475,117700.0,117690.0,0.18043479]
[1753291066458,0.60150866,117700.0,117690.0,0.002]
[1753291066754,0.68598596,117700.0,117690.0,0.002]
[1753291067528,0.68553566,117700.0,117690.0,0.002]
[1753291067736,0.31776572,117700.0,117690.0,0.002]
[1753291067943,0.31776572,117700.0,117690.0,0.18043486]
[1753291068371,0.31776572,117700.0,117690.0,0.18893168]
[1753291068574,0.15633815,117700.0,117690.0,0.21442135]
[1753291068784,0.15899277,117700.0,117690.0,0.21442135]
[1753291069244,0.16748821,117700.0,117690.0,0.21442135]
[1753291069882,0.17598424,117700.0,117690.0,0.21442135]
[1753291070098,0.17332919,117700.0,117690.0,0.21442135]
[1753291070299,0.16483316,117700.0,117690.0,0.21442135]
[1753291070532,0.17598424,117700.0,117690.0,0.21442135]
[1753291070710,0.18182594,117700.0,117690.0,0.21442135]
[1753291070957,0.16483367,117700.0,117690.0,0.21442135]
[1753291071172,0.16748872,117700.0,117690.0,0.21442135]
[1753291071388,0.15899269,117700.0,117690.0,0.21442135]
[1753291071605,0.17598482,117700.0,117690.0,0.21442135]
[1753291073540,0.34325337,117700.0,117690.0,0.20592496]
[1753291073764,0.70252757,117700.0,117690.0,0.002]
[1753291073981,0.69403169,117700.0,117690.0,0.002]
[1753291074243,1.03403169,117700.0,117690.0,0.002]
[1753291075327,1.03503169,117700.0,117690.0,0.002]
[1753291075536,0.20439615,117680.0,117670.0,0.00014827]
[1753291075747,0.38125615,117680.0,117670.0,0.00864661]
[1753291075963,0.38437615,117680.0,117670.0,0.00014827]
[1753291076592,0.3758789,117680.0,117670.0,0.00014827]
[1753291076992,0.3768789,117680.0,117670.0,0.00314827]
[1753291077606,0.3768789,117680.0,117670.0,0.00414827]
[1753291077763,0.46043776,117680.0,117670.0,0.00414827]
[1753291077966,0.3768789,117680.0,117670.0,0.00414827]
[1753291079191,0.3768789,117680.0,117670.0,0.01264661]
[1753291079405,0.38537615,117680.0,117670.0,0.19111158]
[1753291079605,0.36947615,117680.0,117670.0,0.19960963]
[1753291079946,0.36947615,117680.0,117670.0,0.69536992]
[1753291079947,0.001,117680.0,117670.0,0.69536992]
[1753291080171,0.14432,117680.0,117670.0,0.69536992]
[1753291080390,0.001,117680.0,117670.0,1.48761716]
[1753291081477,0.001,117680.0,117670.0,1.48661716]
[1753291081990,0.001,117680.0,117670.0,1.11884722]
[1753291082208,0.2051787,117710.0,117700.0,0.19541118]
[1753291082432,0.37508779,117710.0,117700.0,0.19541132]
[1753291082642,0.20183332,117710.0,117700.0,0.20390699]
[1753291082993,0.23691779,117710.0,117700.0,0.19541132]
[1753291083212,0.6103287,117710.0,117700.0,0.20390706]
[1753291083454,0.6103287,117710.0,117700.0,0.21441273]
[1753291083455,0.58172263,117710.0,117700.0,0.21441273]
[1753291083693,0.59121757,117710.0,117700.0,0.21441273]
[1753291083823,0.59971273,117710.0,117700.0,0.58218267]
[1753291084042,0.60820796,117710.0,117700.0,0.58218267]
[1753291084236,0.61670327,117710.0,117700.0,0.21441273]
[1753291084444,0.78973338,117710.0,117700.0,0.19742132]
[1753291084667,0.79073338,117710.0,117700.0,0.17841963]
[1753291084884,0.78223822,117710.0,117700.0,0.19541162]
[1753291085215,0.58684285,117710.0,117700.0,0.21240331]
[1753291085399,0.77374212,117710.0,117700.0,0.18691552]
[1753291085617,0.77374212,117710.0,117700.0,0.16992353]
[1753291085618,0.76524725,117710.0,117700.0,0.16992353]
[1753291085819,0.75675216,117710.0,117700.0,0.1784197]
[1753291086040,0.78223808,117710.0,117700.0,0.20390743]
[1753291086248,0.77374299,117710.0,117700.0,0.20390757]
[1753291086463,0.77374299,117710.0,117700.0,0.21240338]
[1753291086681,0.77374299,117710.0,117700.0,0.1784197]
[1753291086842,0.77374299,117710.0,117700.0,0.1869158]
[1753291087451,0.78994299,117710.0,117700.0,0.19541176]
[1753291087636,0.1784192,117700.0,117690.0,0.17842198]
[1753291087839,0.0221417,117700.0,117690.0,0.18691837]
[1753291088229,0.0306378,117700.0,117690.0,0.19541497]
[1753291088487,0.21801013,117700.0,117690.0,0.19541497]
[1753291088803,0.0480866,117700.0,117690.0,0.19541497]
[1753291088995,0.05074165,117700.0,117690.0,0.19641497]
[1753291089181,0.05074165,117700.0,117690.0,0.19741497]
[1753291089326,0.02525407,117700.0,117690.0,0.19741497]
[1753291089602,0.02594469,117700.0,117690.0,0.65167221]
[1753291090030,0.02594469,117700.0,117690.0,0.56719491]
[1753291090031,0.01744902,117700.0,117690.0,0.56719491]
[1753291090229,0.02594454,117700.0,117690.0,0.56719491]
[1753291090874,0.03709533,117700.0,117690.0,0.56719491]
[1753291091103,0.04559121,117700.0,117690.0,0.56719491]
[1753291091310,0.02859959,117700.0,117690.0,0.56719491]
[1753291091512,0.04559107,117700.0,117690.0,0.56719491]
[1753291091708,0.03709526,117700.0,117690.0,0.56719491]
[1753291091950,0.04293594,117700.0,117690.0,0.19942497]
[1753291092186,0.03444013,117700.0,117690.0,0.56719491]
[1753291092418,0.04293587,117700.0,117690.0,0.56518491]
[1753291092623,0.04559092,117700.0,117690.0,0.19942497]
[1753291092828,0.04559085,117700.0,117690.0,0.56719491]
[1753291093027,0.03709518,117700.0,117690.0,0.56719491]
[1753291093237,0.01744902,117700.0,117690.0,0.56719491]
[1753291093659,0.01744902,117700.0,117690.0,0.65167221]
[1753291094109,0.02594461,117700.0,117690.0,0.65167221]
[1753291094313,0.03444035,117700.0,117690.0,0.56719491]
[1753291094496,0.02594461,117700.0,117690.0,0.56719491]
[1753291094703,0.02594454,117700.0,117690.0,0.56719491]
[1753291094906,0.01744902,117700.0,117690.0,0.56719491]
[1753291095045,0.07744902,117700.0,117690.0,0.57014491]
[1753291095251,0.07744902,117700.0,117690.0,0.65462221]
[1753291095518,0.06,117700.0,117690.0,0.31815227]
[1753291095677,0.06849559,117700.0,117690.0,0.66687221]
[1753291095882,0.06849559,117700.0,117690.0,0.26690935]
[1753291095883,0.26905699,117700.0,117690.0,0.26690935]
[1753291096085,0.25206486,117700.0,117690.0,0.20792158]
[1753291096292,0.07364559,117700.0,117690.0,0.20792158]
[1753291096486,0.24356912,117700.0,117690.0,0.19092873]
[1753291096690,0.25206493,117700.0,117690.0,0.20792172]
[1753291096895,0.0821414,117700.0,117690.0,0.20792172]
[1753291097111,0.26056081,117700.0,117690.0,0.19942533]
[1753291097349,0.08214126,117700.0,117690.0,0.20792172]
[1753291097522,0.09063707,117700.0,117690.0,0.20792172]
[1753291097730,0.06515,117700.0,117690.0,0.20792172]
[1753291097929,0.06849559,117700.0,117690.0,0.20591172]
[1753291098168,0.07902133,117700.0,117690.0,0.20792172]
[1753291098374,0.09063721,117700.0,117690.0,0.19942533]
[1753291098712,0.26056067,117700.0,117690.0,0.20792172]
[1753291098830,0.09063714,117700.0,117690.0,0.20792172]
[1753291099037,0.32811637,117700.0,117690.0,0.0621]
[1753291099254,0.71068028,117700.0,117690.0,0.0621]
[1753291099701,0.30061454,117700.0,117690.0,0.0621]
[1753291099901,0.66838448,117700.0,117690.0,0.0621]
[1753291100269,0.66838448,117700.0,117690.0,0.0611]
[1753291100486,0.30061454,117700.0,117690.0,0.0601]
[1753291100697,0.66838448,117700.0,117690.0,0.0601]
[1753291100907,0.66938448,117700.0,117690.0,0.0601]
[1753291101136,0.75386178,117700.0,117690.0,0.0601]
[1753291103776,0.90386178,117700.0,117690.0,0.0601]
[1753291106227,1.24386178,117700.0,117690.0,0.0601]
[1753291106662,1.38602178,117700.0,117690.0,0.0601]
[1753291106880,1.38902178,117700.0,117690.0,0.0611]
[1753291109491,1.39102178,117700.0,117690.0,0.0611]
[1753291110566,0.88009184,117700.0,117690.0,0.0611]
[1753291110799,1.39098178,117700.0,117690.0,0.0611]
[1753291112098,1.39102178,117700.0,117690.0,0.0611]
[1753291112370,0.35674282,117700.0,117690.0,0.0611]
[1753291112579,0.51496282,117700.0,117690.0,0.0611]
[1753291112800,0.53241184,117700.0,117690.0,0.0611]
[1753291113024,0.49986282,117700.0,117690.0,0.0611]
[1753291113240,0.34824686,117700.0,117690.0,0.0611]
[1753291113462,0.49136686,117700.0,117690.0,0.0611]
[1753291113671,0.87658582,117700.0,117690.0,0.0611]
[1753291113880,0.89268582,117700.0,117690.0,0.0611]
[1753291114087,0.52491588,117700.0,117690.0,0.0611]
[1753291114304,0.89268582,117700.0,117690.0,0.0611]
[1753291115607,1.04268582,117700.0,117690.0,0.0611]
[1753291116042,1.38268582,117700.0,117690.0,0.0611]
[1753291118108,1.38268582,117700.0,117690.0,0.05924734]
[1753291120480,1.38268582,117700.0,117690.0,0.05660095]
[1753291123328,0.87459615,117680.0,117670.0,0.00014827]
[1753291123550,1.83980333,117680.0,117670.0,0.00014827]
[1753291124051,1.84285333,117680.0,117670.0,1e-08]
[1753291124692,1.84585333,117680.0,117670.0,0.00100001]
[1753291124914,1.84585333,117680.0,117670.0,1e-08]
[1753291125096,1.84785333,117680.0,117670.0,1e-08]
[1753291125547,1.84585333,117680.0,117670.0,1e-08]
[1753291125972,1.11331345,117680.0,117670.0,1e-08]
[1753291126188,1.84885333,117680.0,117670.0,1e-08]
[1753291126405,1.11331345,117680.0,117670.0,1e-08]
[1753291126616,1.84885333,117680.0,117670.0,1e-08]
[1753291127697,1.85285333,117680.0,117670.0,0.00100001]
[1753291128194,1.95285333,117680.0,117670.0,1e-08]
[1753291128466,0.68592794,117660.0,117650.0,1e-08]
[1753291128710,0.86745958,117640.0,117630.0,0.01253499]
[1753291128956,1.83266676,117640.0,117630.0,0.01253499]
[1753291129204,1.85265275,117640.0,117630.0,0.01253499]
[1753291129431,1.85570275,117640.0,117630.0,0.01253499]
[1753291129875,2.00570275,117640.0,117630.0,0.01253499]
[1753291130138,2.00578649,117640.0,117630.0,0.01253499]
[1753291130576,1.27024661,117640.0,117630.0,0.01253499]
[1753291130787,2.00578649,117640.0,117630.0,0.01253499]
[1753291131002,1.27024661,117640.0,117630.0,0.01253499]
[1753291131661,1.63003501,117640.0,117630.0,0.01253499]
[1753291131871,1.63003501,117640.0,117630.0,0.01353499]
[1753291132546,1.61004902,117640.0,117630.0,0.01353499]
[1753291132757,1.51696902,117640.0,117630.0,1e-08]
[1753291132987,1.54006936,117640.0,117630.0,1e-08]
[1753291133206,1.68358936,117640.0,117630.0,1e-08]
[1753291133421,1.68362936,117640.0,117630.0,1e-08]
[1753291133645,1.66052902,117640.0,117630.0,1e-08]
[1753291133890,1.66052902,117640.0,117630.0,0.00100001]
[1753291133891,1.71252902,117640.0,117630.0,0.00100001]
[1753291134130,1.71252902,117640.0,117630.0,1e-08]
[1753291134370,1.83362936,117640.0,117630.0,1e-08]
[1753291134854,1.90918936,117640.0,117630.0,1e-08]
[1753291135089,1.02590742,117610.0,117600.0,0.050515]
[1753291135327,1.61592312,117610.0,117600.0,0.050515]
[1753291135564,1.64207346,117610.0,117600.0,0.050515]
[1753291136047,1.69207346,117610.0,117600.0,0.050515]
[1753291137227,1.66897312,117610.0,117600.0,0.050515]
[1753291137475,1.33228506,117610.0,117600.0,0.050515]
[1753291137723,1.69207346,117610.0,117600.0,0.050515]
[1753291137942,1.66897312,117610.0,117600.0,0.050515]
[1753291138168,1.66997312,117610.0,117600.0,0.050515]
[1753291138831,1.31997312,117610.0,117600.0,0.050515]
[1753291139065,1.46997312,117610.0,117600.0,0.050515]
[1753291139497,1.11018472,117610.0,117600.0,0.050515]
[1753291139708,1.46997312,117610.0,117600.0,0.050515]
[1753291140385,0.96654472,117610.0,117600.0,0.050515]
[1753291140607,1.47017312,117610.0,117600.0,0.050515]
[1753291140864,1.11038472,117610.0,117600.0,0.050515]
[1753291141101,0.96038472,117610.0,117600.0,0.050515]
[1753291141367,0.90856669,117610.0,117600.0,0.23106634]
[1753291141605,0.3878994,117610.0,117600.0,0.23956967]
[1753291141845,0.44240718,117610.0,117600.0,0.22256302]
[1753291142089,0.77390494,117610.0,117600.0,0.22256302]
[1753291142335,0.77490494,117610.0,117600.0,0.053495]
[1753291142580,0.93011494,117610.0,117600.0,0.051515]
[1753291142943,1.28990334,117610.0,117600.0,0.051515]
[1753291143583,1.32160334,117610.0,117600.0,0.051515]
[1753291143799,0.96181494,117610.0,117600.0,0.051515]
[1753291144053,1.32160334,117610.0,117600.0,0.051515]
[1753291144252,1.28990334,117610.0,117600.0,0.051515]
[1753291144914,1.32140334,117610.0,117600.0,0.051515]
[1753291145543,1.30570334,117610.0,117600.0,0.051515]
[1753291146221,1.32110334,117610.0,117600.0,0.051515]
[1753291146432,0.96131494,117610.0,117600.0,0.051515]
[1753291146669,1.32110334,117610.0,117600.0,0.051515]
[1753291147087,1.47110334,117610.0,117600.0,0.051515]
[1753291147534,1.52110334,117610.0,117600.0,0.051515]
[1753291148418,1.54666734,117610.0,117600.0,0.051515]
[1753291149105,1.54666734,117610.0,117600.0,0.047715]
[1753291150177,1.40274734,117610.0,117600.0,0.047715]
[1753291150451,1.54690734,117610.0,117600.0,0.047715]
[1753291151096,1.56800768,117610.0,117600.0,0.046715]
[1753291151329,1.9455746,117610.0,117600.0,0.046715]
[1753291151552,1.5577966,117610.0,117600.0,0.047715]
[1753291151768,1.92647426,117610.0,117600.0,0.047715]
[1753291152001,1.94709912,117610.0,117600.0,0.047715]
[1753291152222,1.92647426,117610.0,117600.0,0.04281472]
[1753291152654,2.01003312,117610.0,117600.0,0.04281472]
[1753291152868,2.06003312,117610.0,117600.0,0.04281472]
[1753291153091,1.45497561,117600.0,117590.0,0.0002]
[1753291153318,1.88980291,117600.0,117590.0,0.0002]
[1753291153539,1.94298291,117600.0,117590.0,1e-08]
[1753291153760,0.86793548,117590.0,117580.0,1e-08]
[1753291153982,1.15174278,117590.0,117580.0,1e-08]
[1753291154235,1.52042044,117590.0,117580.0,1e-08]
[1753291154509,1.57042044,117590.0,117580.0,1e-08]
[1753291154747,1.20174278,117590.0,117580.0,1e-08]
[1753291155395,1.20374278,117590.0,117580.0,1e-08]
[1753291155608,1.20574278,117590.0,117580.0,1e-08]
[1753291156048,1.06162278,117590.0,117580.0,1e-08]
[1753291156279,1.06162278,117590.0,117570.0,0.03360237]
[1753291156280,1.08605067,117580.0,117570.0,0.03360237]
[1753291156512,1.23001067,117580.0,117570.0,0.06762237]
[1753291156746,0.7545553,117580.0,117570.0,0.23659379]
[1753291156962,0.8985953,117580.0,117570.0,0.06648237]
[1753291157177,0.8985953,117580.0,117570.0,0.06960237]
[1753291157178,0.99330655,117580.0,117570.0,0.06960237]
[1753291157393,1.00181139,117580.0,117570.0,0.25732471]
[1753291157615,0.68271444,117580.0,117570.0,0.26582984]
[1753291157827,0.8363623,117580.0,117570.0,0.07220237]
[1753291158105,0.88585767,117580.0,117570.0,0.07020237]
[1753291158320,0.88585767,117580.0,117570.0,0.25732456]
[1753291158535,0.71775999,117580.0,117570.0,0.28033482]
[1753291158752,0.89636164,117580.0,117570.0,0.26332456]
[1753291159016,0.70075125,117580.0,117570.0,0.27182976]
[1753291159259,0.70159125,117580.0,117570.0,0.26332456]
[1753291159472,0.70159125,117580.0,117570.0,0.27182969]
[1753291159689,0.71904027,117580.0,117570.0,0.26332456]
[1753291159901,0.80965883,117580.0,117570.0,0.2803349]
[1753291160343,0.79265016,117580.0,117570.0,0.2803349]
[1753291160568,0.80965883,117580.0,117570.0,0.2803349]
[1753291160998,0.81816331,117580.0,117570.0,0.2583349]
[1753291161208,0.68178801,117580.0,117570.0,0.2583349]
[1753291161422,0.81904331,117580.0,117570.0,0.26684003]
[1753291161641,0.81053876,117580.0,117570.0,0.26684003]
[1753291162138,0.80998036,117580.0,117570.0,0.26684003]
[1753291162360,0.73637047,117580.0,117570.0,0.26684003]
[1753291162581,0.75337965,117580.0,117570.0,0.26684003]
[1753291162793,0.9234766,117580.0,117570.0,0.24982984]
[1753291163003,0.75337965,117580.0,117570.0,0.25833497]
[1753291163217,0.92347718,117580.0,117570.0,0.24982984]
[1753291163431,0.74487546,117580.0,117570.0,0.2583349]
[1753291163646,0.73637076,117580.0,117570.0,0.2583349]
[1753291163859,0.71936187,117580.0,117570.0,0.2583349]
[1753291164284,0.72139187,117580.0,117570.0,0.18771379]
[1753291164502,1.07637062,117580.0,117570.0,0.25032969]
[1753291164721,1.0933798,117580.0,117570.0,0.25883489]
[1753291164938,1.06786621,117580.0,117570.0,0.26733995]
[1753291165380,1.07637069,117580.0,117570.0,0.26733995]
[1753291165607,1.27210944,117580.0,117570.0,0.25032976]
[1753291165822,1.25510062,117580.0,117570.0,0.2387047]
[1753291166259,1.25510062,117580.0,117570.0,0.24721005]
[1753291166494,1.24659607,117580.0,117570.0,0.24721005]
[1753291166706,1.23796366,117580.0,117570.0,0.22897106]
[1753291166920,1.22945882,117580.0,117570.0,0.22897114]
[1753291167135,0.83001722,117580.0,117570.0,0.25448704]
[1753291167344,0.67692945,117580.0,117570.0,0.26299232]
[1753291167552,0.93058526,117580.0,117570.0,0.25448726]
[1753291167780,0.8470264,117580.0,117570.0,0.24598198]
[1753291167987,0.8470264,117580.0,117570.0,0.25448726]
[1753291168250,0.8470264,117580.0,117570.0,0.26299246]
[1753291169081,0.8470264,117580.0,117570.0,0.05035415]
[1753291169331,0.83852192,117580.0,117570.0,0.05035415]
[1753291169565,0.84369192,117580.0,117570.0,0.01637415]
[1753291171122,0.84059192,117580.0,117570.0,0.01837415]
[1753291171563,0.84059192,117580.0,117570.0,0.01637415]
[1753291171564,0.84369192,117580.0,117570.0,0.01637415]
[1753291172243,0.69793192,117580.0,117570.0,0.01837415]
[1753291172460,0.83852192,117580.0,117570.0,0.01837415]
[1753291172887,0.84059192,117580.0,117570.0,0.01837415]
[1753291173370,0.84369192,117580.0,117570.0,0.01837415]
[1753291173793,0.84059192,117580.0,117570.0,0.01837415]
[1753291174222,0.84369192,117580.0,117570.0,0.01837415]
[1753291174655,0.84369192,117580.0,117570.0,0.01637415]
[1753291174874,0.83852192,117580.0,117570.0,0.01837415]
[1753291175310,0.84059192,117580.0,117570.0,0.01837415]
[1753291175533,0.83974144,117580.0,117570.0,0.01837415]
[1753291176197,0.83767144,117580.0,117570.0,0.01837415]
[1753291176619,0.84284144,117580.0,117570.0,0.01837415]
[1753291176841,0.84284144,117580.0,117570.0,0.01637415]
[1753291177957,0.84191144,117580.0,117570.0,0.01727289]
[1753291178166,0.50436496,117580.0,117570.0,0.61635931]
[1753291178397,0.67535855,117580.0,117570.0,0.61635931]
[1753291178605,0.8454555,117580.0,117570.0,0.61635959]
[1753291178813,0.86290452,117580.0,117570.0,0.62486472]
[1753291179028,0.69280757,117580.0,117570.0,0.63336978]
[1753291179242,0.7013122,117580.0,117570.0,0.60785439]
[1753291179464,0.86290496,117580.0,117570.0,0.61635959]
[1753291179676,0.69280801,117580.0,117570.0,0.62486465]
[1753291179889,0.68430331,117580.0,117570.0,0.62486465]
[1753291180108,0.86290503,117580.0,117570.0,0.61635959]
[1753291180555,0.84597614,117580.0,117570.0,0.05208289]
[1753291180765,0.83747151,117580.0,117570.0,0.42073206]
[1753291181264,0.82896674,117580.0,117570.0,0.42073206]
[1753291181479,0.82896674,117580.0,117570.0,0.05208289]
[1753291181697,0.82896674,117580.0,117570.0,0.04887289]
[1753291183837,0.83413674,117580.0,117570.0,0.01727289]
[1753291184056,0.99953674,117580.0,117570.0,0.01527289]
[1753291184274,1.37558885,117580.0,117570.0,0.01527289]
[1753291184485,1.01563674,117580.0,117570.0,0.01527289]
[1753291184921,1.50948885,117580.0,117570.0,0.01527289]
[1753291185132,1.47701797,117570.0,117560.0,0.00026]
[1753291185350,1.63429281,117570.0,117560.0,0.00026]
[1753291185581,1.23429281,117570.0,117560.0,0.00026]
[1753291185797,1.38049281,117570.0,117560.0,0.00026]
[1753291186520,0.91670316,117570.0,117560.0,0.00026]
[1753291187019,0.92187316,117570.0,117560.0,0.00026]
[1753291187345,1.28182527,117570.0,117560.0,0.00026]
[1753291187574,0.92383316,117570.0,117560.0,0.00126]
[1753291188723,0.77771316,117570.0,117560.0,0.00126]
[1753291188975,0.77771316,117570.0,117560.0,0.00326]
[1753291188976,0.77371316,117570.0,117560.0,0.00326]
[1753291189438,0.77911851,117570.0,117560.0,0.00326]
[1753291189650,0.78011851,117570.0,117560.0,0.00326]
[1753291189871,0.4274773,117570.0,117560.0,0.23391425]
[1753291190089,0.2333973,117570.0,117560.0,0.24242003]
[1753291190751,0.5733573,117570.0,117560.0,0.24242003]
[1753291190975,0.58186236,117570.0,117560.0,0.24242003]
[1753291191198,0.59036756,117570.0,117560.0,0.24242003]
[1753291191421,0.59036749,117570.0,117560.0,0.24242003]
[1753291191632,0.59931138,117570.0,117560.0,0.24242003]
[1753291191851,0.59080632,117570.0,117560.0,0.24242003]
[1753291192271,0.60781651,117570.0,117560.0,0.24131881]
[1753291192507,0.62482742,117570.0,117560.0,0.24131889]
[1753291192715,0.79493942,117570.0,117560.0,0.2296031]
[1753291192918,0.624828,117570.0,117560.0,0.23810896]
[1753291193222,0.78643422,117570.0,117560.0,0.03395878]
[1753291193484,0.7830988,117570.0,117560.0,0.00015878]
[1753291194749,1.45885091,117570.0,117560.0,0.00015878]
[1753291194950,1.47495091,117570.0,117560.0,0.00015878]
[1753291195558,1.62410036,117570.0,117560.0,0.00015878]
[1753291196509,1.50379036,117570.0,117560.0,0.00015878]
[1753291196721,1.49919036,117570.0,117560.0,0.00015878]
[1753291197627,1.13923825,117570.0,117560.0,0.00015878]
[1753291197863,1.49919036,117570.0,117560.0,0.00015878]
[1753291198549,1.13923825,117570.0,117560.0,0.00015878]
[1753291198756,1.49919036,117570.0,117560.0,0.00015878]
[1753291199214,0.56708105,117560.0,117550.0,0.004]
[1753291199424,0.80189835,117560.0,117550.0,1e-08]
[1753291199641,1.16185046,117560.0,117550.0,1e-08]
[1753291199859,1.31185046,117560.0,117550.0,1e-08]
[1753291200059,1.3348869,117560.0,117550.0,1e-08]
[1753291200319,1.36185046,117560.0,117550.0,1e-08]
[1753291200553,1.45251444,117560.0,117550.0,1e-08]
[1753291200761,1.09256233,117560.0,117550.0,1e-08]
[1753291201007,1.21649046,117560.0,117550.0,1e-08]
[1753291201211,1.36269046,117560.0,117550.0,1e-08]
[1753291201420,1.3887269,117560.0,117550.0,0.00100001]
[1753291201632,1.36569046,117560.0,117550.0,1e-08]
[1753291201879,0.04297766,117510.0,117500.0,0.22450669]
[1753291202125,0.3451364,117510.0,117500.0,0.04779563]
[1753291202333,0.7584446,117510.0,117500.0,0.019975]
[1753291202547,0.7584446,117510.0,117500.0,0.19018776]
[1753291202766,0.7584446,117510.0,117500.0,0.21720839]
[1753291202972,0.62063436,117510.0,117500.0,0.23422922]
[1753291203187,0.76748663,117510.0,117500.0,0.22571888]
[1753291203390,0.76748663,117510.0,117500.0,0.038485]
[1753291203601,0.85104549,117510.0,117500.0,0.022985]
[1753291203803,0.76946663,117510.0,117500.0,0.004475]
[1753291204087,0.91946663,117510.0,117500.0,0.004475]
[1753291204280,0.91748663,117510.0,117500.0,0.004475]
[1753291204494,0.91848663,117510.0,117500.0,0.007475]
[1753291204715,0.76848663,117510.0,117500.0,0.023575]
[1753291205349,0.76848663,117510.0,117500.0,0.007475]
[1753291206212,0.77046663,117510.0,117500.0,0.007475]
[1753291206856,1.26596663,117510.0,117500.0,0.008475]
[1753291207077,1.26398663,117510.0,117500.0,0.18719825]
[1753291207282,1.10229747,117510.0,117500.0,0.247539]
[1753291207484,1.11931707,117510.0,117500.0,0.247539]
[1753291207718,1.10185732,117510.0,117500.0,0.247539]
[1753291207923,0.854011,117510.0,117500.0,0.60749111]
[1753291208130,0.854011,117510.0,117500.0,0.247539]
[1753291208131,1.02546029,117510.0,117500.0,0.247539]
[1753291208352,1.17863984,117510.0,117500.0,0.23051867]
[1753291208596,1.17013022,117510.0,117500.0,0.23051867]
[1753291208820,1.27201654,117510.0,117500.0,0.23902901]
[1753291209051,1.26350678,117510.0,117500.0,0.024375]
[1753291209276,1.26548678,117510.0,117500.0,0.008475]